[Event "Titled Tuesday Blitz February 22 Early 2022"]
[White "Zanette, Edgard Vinicius"]
[Black "Politov, Pavel Y."]
[WhiteFideId "2109263"]
[BlackFideId "24110515"]
[WhiteElo "2182"]
[BlackElo "2090"]
[Result "1-0"]
[Round "08"]
[TimeControl "180+1"]
[Date "2022.02.22"]
[WhiteClock "0:00:04"]
[BlackClock "0:00:02"]

1. e4 {[%clk 0:03:00]}  c5 {[%clk 0:02:59]} 2. Nc3 {[%clk 0:02:59]}  d6 {[%clk 0:02:58]} 3. f4 {[%clk 0:02:58]}  g6 {[%clk 0:02:54]} 4. Nf3 {[%clk 0:02:58]}  Bg7 {[%clk 0:02:54]} 5. Bc4 {[%clk 0:02:54]}  Nc6 {[%clk 0:02:53]} 6. O-O {[%clk 0:02:53]}  e6 {[%clk 0:02:49]} 7. d3 {[%clk 0:02:51]}  Nd4 {[%clk 0:02:43]} 8. Nxd4 {[%clk 0:02:42]}  cxd4 {[%clk 0:02:41]} 9. Ne2 {[%clk 0:02:41]}  d5 {[%clk 0:02:25]} 10. exd5 {[%clk 0:02:38]}  exd5 {[%clk 0:02:26]} 11. Bb3 {[%clk 0:02:33]}  Ne7 {[%clk 0:02:24]} 12. Ng3 {[%clk 0:02:20]}  O-O {[%clk 0:02:07]} 13. Qf3 {[%clk 0:02:14]}  a5 {[%clk 0:01:52]} 14. a4 {[%clk 0:02:03]}  Qc7 {[%clk 0:01:36]} 15. Bd2 {[%clk 0:01:54]}  Be6 {[%clk 0:01:30]} 16. Rae1 {[%clk 0:01:48]}  Rac8 {[%clk 0:01:21]} 17. Re2 {[%clk 0:01:30]}  b6 {[%clk 0:01:10]} 18. Rfe1 {[%clk 0:01:27]}  Qd7 {[%clk 0:01:04]} 19. h3 {[%clk 0:01:24]}  h5 {[%clk 0:00:52]} 20. Kh2 {[%clk 0:00:55]}  h4 {[%clk 0:00:51]} 21. Nf1 {[%clk 0:00:51]}  Nf5 {[%clk 0:00:50]} 22. g4 {[%clk 0:00:39]}  hxg3+ {[%clk 0:00:49]} 23. Nxg3 {[%clk 0:00:39]}  Nxg3 {[%clk 0:00:49]} 24. Qxg3 {[%clk 0:00:38]}  Bf6 {[%clk 0:00:20]} 25. Rxe6 {[%clk 0:00:29]}  fxe6 {[%clk 0:00:19]} 26. Qxg6+ {[%clk 0:00:29]}  Qg7 {[%clk 0:00:19]} 27. Qxg7+ {[%clk 0:00:26]}  Bxg7 {[%clk 0:00:20]} 28. Rxe6 {[%clk 0:00:26]}  Rf6 {[%clk 0:00:20]} 29. Bxd5 {[%clk 0:00:20]}  Kh7 {[%clk 0:00:16]} 30. Be4+ {[%clk 0:00:19]}  Kg8 {[%clk 0:00:15]} 31. Bd5 {[%clk 0:00:18]}  Kf8 {[%clk 0:00:16]} 32. Rxf6+ {[%clk 0:00:16]}  Bxf6 {[%clk 0:00:16]} 33. Bb3 {[%clk 0:00:16]}  Ke7 {[%clk 0:00:15]} 34. Kg2 {[%clk 0:00:16]}  Kd6 {[%clk 0:00:15]} 35. Kf3 {[%clk 0:00:15]}  Ke7 {[%clk 0:00:14]} 36. f5 {[%clk 0:00:14]}  Kd6 {[%clk 0:00:14]} 37. Bf4+ {[%clk 0:00:14]}  Be5 {[%clk 0:00:15]} 38. Bg5 {[%clk 0:00:14]}  Rg8 {[%clk 0:00:13]} 39. Bxg8 {[%clk 0:00:13]}  Kd7 {[%clk 0:00:12]} 40. Bc4 {[%clk 0:00:13]}  Ke8 {[%clk 0:00:12]} 41. Ke4 {[%clk 0:00:13]}  Bc7 {[%clk 0:00:09]} 42. h4 {[%clk 0:00:13]}  Kf8 {[%clk 0:00:09]} 43. Kxd4 {[%clk 0:00:13]}  Bd6 {[%clk 0:00:09]} 44. h5 {[%clk 0:00:13]}  Bc5+ {[%clk 0:00:10]} 45. Kd5 {[%clk 0:00:13]}  Bf2 {[%clk 0:00:09]} 46. d4 {[%clk 0:00:14]}  Be1 {[%clk 0:00:07]} 47. c3 {[%clk 0:00:14]}  b5 {[%clk 0:00:07]} 48. axb5 {[%clk 0:00:13]}  Bg3 {[%clk 0:00:06]} 49. b6 {[%clk 0:00:13]}  a4 {[%clk 0:00:07]} 50. b7 {[%clk 0:00:13]}  a3 {[%clk 0:00:08]} 51. bxa3 {[%clk 0:00:13]}  Bb8 {[%clk 0:00:07]} 52. h6 {[%clk 0:00:13]}  Kg8 {[%clk 0:00:07]} 53. Ke6 {[%clk 0:00:13]}  Kh8 {[%clk 0:00:08]} 54. Kf6 {[%clk 0:00:11]}  Bc7 {[%clk 0:00:06]} 55. Kg6 {[%clk 0:00:11]}  Bd8 {[%clk 0:00:06]} 56. Bf4 {[%clk 0:00:10]}  Bc7 {[%clk 0:00:04]} 57. Be3 {[%clk 0:00:06]}  Bf4 {[%clk 0:00:04]} 58. Bd3 {[%clk 0:00:05]}  Be5 {[%clk 0:00:02]} 59. dxe5 {[%clk 0:00:04]}  Kg8 {[%clk 0:00:02]} 60. b8=Q# {[%clk 0:00:04]} 1-0


[Site "https://www.chess.com"]

[Event "Titled Tuesday Blitz February 22 Early 2022"]
[White "Zavivaeva, Emilia"]
[Black "Mayaud, Raphael"]
[WhiteFideId "34127531"]
[BlackFideId "627151"]
[WhiteElo "1685"]
[BlackElo "2191"]
[Result "0-1"]
[Round "08"]
[TimeControl "180+1"]
[Date "2022.02.22"]
[WhiteClock "0:01:23"]
[BlackClock "0:01:12"]

1. e4 {[%clk 0:02:57]}  d5 {[%clk 0:02:58]} 2. exd5 {[%clk 0:02:55]}  Qxd5 {[%clk 0:02:58]} 3. Nf3 {[%clk 0:02:51]}  Bg4 {[%clk 0:02:58]} 4. Be2 {[%clk 0:02:49]}  Nc6 {[%clk 0:02:58]} 5. O-O {[%clk 0:02:48]}  O-O-O {[%clk 0:02:57]} 6. c3 {[%clk 0:02:46]}  e5 {[%clk 0:02:57]} 7. d3 {[%clk 0:02:43]}  f5 {[%clk 0:02:29]} 8. Bg5 {[%clk 0:02:30]}  Be7 {[%clk 0:02:17]} 9. Bxe7 {[%clk 0:02:25]}  Ngxe7 {[%clk 0:02:17]} 10. Nbd2 {[%clk 0:02:24]}  Kb8 {[%clk 0:02:04]} 11. Qc2 {[%clk 0:02:22]}  h5 {[%clk 0:01:57]} 12. c4 {[%clk 0:02:09]}  Qg8 {[%clk 0:01:41]} 13. h3 {[%clk 0:02:03]}  Bxf3 {[%clk 0:01:40]} 14. Bxf3 {[%clk 0:02:01]}  g5 {[%clk 0:01:40]} 15. Bd5 {[%clk 0:01:58]}  Nxd5 {[%clk 0:01:33]} 16. cxd5 {[%clk 0:01:57]}  Qxd5 {[%clk 0:01:33]} 17. Nf3 {[%clk 0:01:51]}  g4 {[%clk 0:01:24]} 18. hxg4 {[%clk 0:01:37]}  hxg4 {[%clk 0:01:24]} 19. Ng5 {[%clk 0:01:32]}  Nd4 {[%clk 0:01:18]} 20. Qa4 {[%clk 0:01:23]}  Ne2# {[%clk 0:01:12]} 0-1


[Site "https://www.chess.com"]

[Event "Titled Tuesday Blitz February 22 Early 2022"]
[White "Zheenbekov, Nurgazy"]
[Black "Potapova, Margarita"]
[WhiteFideId "13800485"]
[BlackFideId "14126869"]
[WhiteElo "1959"]
[BlackElo "2209"]
[Result "0-1"]
[Round "08"]
[TimeControl "180+1"]
[Date "2022.02.22"]
[WhiteClock "0:00:05"]
[BlackClock "0:00:05"]

1. e4 {[%clk 0:02:59]}  c5 {[%clk 0:03:00]} 2. Nf3 {[%clk 0:02:59]}  d6 {[%clk 0:03:00]} 3. Bb5+ {[%clk 0:02:59]}  Nd7 {[%clk 0:03:00]} 4. O-O {[%clk 0:02:57]}  a6 {[%clk 0:03:00]} 5. Be2 {[%clk 0:02:56]}  Ngf6 {[%clk 0:02:59]} 6. d3 {[%clk 0:02:56]}  g6 {[%clk 0:02:59]} 7. Re1 {[%clk 0:02:56]}  Bg7 {[%clk 0:03:00]} 8. Bf1 {[%clk 0:02:56]}  O-O {[%clk 0:03:00]} 9. h3 {[%clk 0:02:54]}  b5 {[%clk 0:03:01]} 10. a4 {[%clk 0:02:53]}  Bb7 {[%clk 0:03:01]} 11. Bg5 {[%clk 0:02:46]}  e5 {[%clk 0:02:54]} 12. Qc1 {[%clk 0:02:42]}  Re8 {[%clk 0:02:52]} 13. Bh6 {[%clk 0:02:41]}  Bh8 {[%clk 0:02:51]} 14. Nbd2 {[%clk 0:02:35]}  Nh5 {[%clk 0:02:49]} 15. g3 {[%clk 0:02:27]}  Nf8 {[%clk 0:02:47]} 16. Bg2 {[%clk 0:02:26]}  Ne6 {[%clk 0:02:43]} 17. c3 {[%clk 0:02:22]}  Rc8 {[%clk 0:02:39]} 18. Nf1 {[%clk 0:02:19]}  Bg7 {[%clk 0:02:25]} 19. axb5 {[%clk 0:02:18]}  axb5 {[%clk 0:02:24]} 20. h4 {[%clk 0:02:12]}  Ra8 {[%clk 0:01:34]} 21. Rxa8 {[%clk 0:02:10]}  Qxa8 {[%clk 0:01:35]} 22. N1h2 {[%clk 0:02:00]}  f6 {[%clk 0:01:26]} 23. Bxg7 {[%clk 0:01:59]}  Kxg7 {[%clk 0:01:24]} 24. Ng4 {[%clk 0:01:59]}  Kg8 {[%clk 0:01:19]} 25. Qh6 {[%clk 0:01:56]}  Qd8 {[%clk 0:01:19]} 26. Ra1 {[%clk 0:01:52]}  Qe7 {[%clk 0:01:15]} 27. Bh3 {[%clk 0:01:41]}  Ra8 {[%clk 0:01:12]} 28. Rxa8+ {[%clk 0:01:40]}  Bxa8 {[%clk 0:01:13]} 29. Qc1 {[%clk 0:01:38]}  d5 {[%clk 0:01:07]} 30. Nd2 {[%clk 0:01:23]}  dxe4 {[%clk 0:00:59]} 31. dxe4 {[%clk 0:01:17]}  f5 {[%clk 0:00:50]} 32. Nh6+ {[%clk 0:01:08]}  Kg7 {[%clk 0:00:50]} 33. exf5 {[%clk 0:01:00]}  Qb7 {[%clk 0:00:50]} 34. f3 {[%clk 0:00:53]}  Nxg3 {[%clk 0:00:49]} 35. Qe1 {[%clk 0:00:52]}  Kxh6 {[%clk 0:00:36]} 36. fxe6 {[%clk 0:00:45]}  Nh5 {[%clk 0:00:28]} 37. Qxe5 {[%clk 0:00:42]}  Qe7 {[%clk 0:00:22]} 38. Bg4 {[%clk 0:00:29]}  Qxh4 {[%clk 0:00:11]} 39. e7 {[%clk 0:00:22]}  Bc6 {[%clk 0:00:11]} 40. Qe3+ {[%clk 0:00:18]}  Kg7 {[%clk 0:00:10]} 41. e8=Q {[%clk 0:00:17]}  Bxe8 {[%clk 0:00:09]} 42. Qxe8 {[%clk 0:00:16]}  Qg3+ {[%clk 0:00:07]} 43. Kf1 {[%clk 0:00:15]}  Nf4 {[%clk 0:00:08]} 44. Qe5+ {[%clk 0:00:15]}  Kh6 {[%clk 0:00:07]} 45. Qe3 {[%clk 0:00:10]}  Qg2+ {[%clk 0:00:06]} 46. Ke1 {[%clk 0:00:10]}  g5 {[%clk 0:00:06]} 47. Nf1 {[%clk 0:00:06]}  Qxb2 {[%clk 0:00:06]} 48. Ng3 {[%clk 0:00:04]}  Ng2+ {[%clk 0:00:05]} 49. Kf1 {[%clk 0:00:04]}  Nxe3+ {[%clk 0:00:06]} 50. Ke1 {[%clk 0:00:05]}  Ng2+ {[%clk 0:00:05]} 0-1


[Site "https://www.chess.com"]

[Event "Titled Tuesday Blitz February 22 Early 2022"]
[White "Zierk, Steven"]
[Black "Vokhidov, Shamsiddin"]
[WhiteFideId "2034255"]
[BlackFideId "14204223"]
[WhiteElo "2494"]
[BlackElo "2611"]
[Result "1/2-1/2"]
[Round "08"]
[TimeControl "180+1"]
[Date "2022.02.22"]
[WhiteClock "0:00:04"]
[BlackClock "0:00:11"]

1. b3 {[%clk 0:02:55]}  d5 {[%clk 0:02:59]} 2. Bb2 {[%clk 0:02:55]}  Bg4 {[%clk 0:02:57]} 3. Nf3 {[%clk 0:02:55]}  e6 {[%clk 0:02:56]} 4. d3 {[%clk 0:02:52]}  Bxf3 {[%clk 0:02:55]} 5. exf3 {[%clk 0:02:53]}  Nf6 {[%clk 0:02:52]} 6. g3 {[%clk 0:02:53]}  g6 {[%clk 0:02:52]} 7. Bg2 {[%clk 0:02:52]}  Bg7 {[%clk 0:02:52]} 8. O-O {[%clk 0:02:51]}  O-O {[%clk 0:02:53]} 9. f4 {[%clk 0:02:49]}  Nbd7 {[%clk 0:02:48]} 10. Nd2 {[%clk 0:02:49]}  a5 {[%clk 0:02:47]} 11. a3 {[%clk 0:02:45]}  Ne8 {[%clk 0:02:46]} 12. Bxg7 {[%clk 0:02:43]}  Kxg7 {[%clk 0:02:43]} 13. c4 {[%clk 0:02:42]}  c6 {[%clk 0:02:40]} 14. b4 {[%clk 0:02:38]}  Nd6 {[%clk 0:02:34]} 15. Qc2 {[%clk 0:02:13]}  axb4 {[%clk 0:02:27]} 16. axb4 {[%clk 0:02:12]}  Qf6 {[%clk 0:02:27]} 17. Rab1 {[%clk 0:02:09]}  Ra3 {[%clk 0:02:25]} 18. b5 {[%clk 0:02:07]}  Rc3 {[%clk 0:02:20]} 19. Qa2 {[%clk 0:01:57]}  Rxd3 {[%clk 0:02:20]} 20. bxc6 {[%clk 0:01:56]}  bxc6 {[%clk 0:02:21]} 21. Rfc1 {[%clk 0:01:49]}  Rb8 {[%clk 0:01:56]} 22. Rxb8 {[%clk 0:01:41]}  Nxb8 {[%clk 0:01:57]} 23. cxd5 {[%clk 0:01:40]}  cxd5 {[%clk 0:01:55]} 24. Nf3 {[%clk 0:01:38]}  Rc3 {[%clk 0:01:45]} 25. Rb1 {[%clk 0:01:29]}  Nc6 {[%clk 0:01:44]} 26. h4 {[%clk 0:01:20]}  Ne4 {[%clk 0:01:43]} 27. Ng5 {[%clk 0:01:16]}  Qd4 {[%clk 0:01:19]} 28. Bxe4 {[%clk 0:00:20]}  dxe4 {[%clk 0:01:19]} 29. Rb7 {[%clk 0:00:17]}  Nd8 {[%clk 0:01:10]} 30. Rxf7+ {[%clk 0:00:16]}  Kg8 {[%clk 0:01:02]} 31. Qa7 {[%clk 0:00:15]}  Rxg3+ {[%clk 0:00:50]} 32. Kh2 {[%clk 0:00:13]}  Qxa7 {[%clk 0:00:44]} 33. Rxa7 {[%clk 0:00:14]}  Rd3 {[%clk 0:00:33]} 34. Ra8 {[%clk 0:00:13]}  Kf8 {[%clk 0:00:23]} 35. Nxe6+ {[%clk 0:00:08]}  Ke7 {[%clk 0:00:23]} 36. Nxd8 {[%clk 0:00:06]}  Rxd8 {[%clk 0:00:24]} 37. Ra4 {[%clk 0:00:06]}  Kf6 {[%clk 0:00:19]} 38. Rxe4 {[%clk 0:00:05]}  Kf5 {[%clk 0:00:19]} 39. Re7 {[%clk 0:00:05]}  Kxf4 {[%clk 0:00:11]} 40. Rxh7 {[%clk 0:00:05]}  Kg4 {[%clk 0:00:11]} 41. Rh6 {[%clk 0:00:04]} 1/2-1/2


[Site "https://www.chess.com"]

[Event "Titled Tuesday Blitz February 22 Early 2022"]
[White "Zlatin, Alexander"]
[Black "Sarkar, Justin"]
[WhiteFideId "2810549"]
[BlackFideId "2010011"]
[WhiteElo "2228"]
[BlackElo "2038"]
[Result "1-0"]
[Round "08"]
[TimeControl "180+1"]
[Date "2022.02.22"]
[WhiteClock "0:00:15"]
[BlackClock "0:00:02"]

1. e4 {[%clk 0:02:53]}  e5 {[%clk 0:02:56]} 2. Nf3 {[%clk 0:02:53]}  Nc6 {[%clk 0:02:55]} 3. Bc4 {[%clk 0:02:54]}  Bc5 {[%clk 0:02:48]} 4. c3 {[%clk 0:02:51]}  Nf6 {[%clk 0:02:47]} 5. d4 {[%clk 0:02:52]}  exd4 {[%clk 0:02:46]} 6. b4 {[%clk 0:02:53]}  Bb6 {[%clk 0:02:32]} 7. e5 {[%clk 0:02:51]}  d5 {[%clk 0:02:25]} 8. exf6 {[%clk 0:02:50]}  dxc4 {[%clk 0:02:23]} 9. Qe2+ {[%clk 0:02:48]}  Be6 {[%clk 0:02:19]} 10. fxg7 {[%clk 0:02:45]}  Rg8 {[%clk 0:02:19]} 11. b5 {[%clk 0:02:46]}  d3 {[%clk 0:02:11]} 12. Qe4 {[%clk 0:02:41]}  Ne7 {[%clk 0:02:04]} 13. Qxh7 {[%clk 0:02:34]}  Qd5 {[%clk 0:01:46]} 14. Ba3 {[%clk 0:02:20]}  Bf5 {[%clk 0:01:26]} 15. Qxg8+ {[%clk 0:01:41]}  Nxg8 {[%clk 0:01:24]} 16. O-O {[%clk 0:01:41]}  O-O-O {[%clk 0:01:18]} 17. Re1 {[%clk 0:01:34]}  Bc5 {[%clk 0:00:27]} 18. Bxc5 {[%clk 0:01:05]}  Qxc5 {[%clk 0:00:26]} 19. Re5 {[%clk 0:01:05]}  Qxe5 {[%clk 0:00:09]} 20. Nxe5 {[%clk 0:01:06]}  d2 {[%clk 0:00:08]} 21. Nxd2 {[%clk 0:01:07]}  Rxd2 {[%clk 0:00:08]} 22. Re1 {[%clk 0:01:02]}  f6 {[%clk 0:00:03]} 23. Nf7 {[%clk 0:00:42]}  Kd7 {[%clk 0:00:02]} 24. g4 {[%clk 0:00:37]}  Bd3 {[%clk 0:00:02]} 25. g5 {[%clk 0:00:33]}  fxg5 {[%clk 0:00:02]} 26. Nxg5 {[%clk 0:00:33]}  Rxa2 {[%clk 0:00:02]} 27. Re5 {[%clk 0:00:28]}  Re2 {[%clk 0:00:02]} 28. Rd5+ {[%clk 0:00:20]}  Ke7 {[%clk 0:00:02]} 29. Rc5 {[%clk 0:00:20]}  Kf6 {[%clk 0:00:03]} 30. h4 {[%clk 0:00:18]}  Kxg7 {[%clk 0:00:03]} 31. Rxc7+ {[%clk 0:00:18]}  Re7 {[%clk 0:00:03]} 32. Rc5 {[%clk 0:00:17]}  Nf6 {[%clk 0:00:03]} 33. Rc8 {[%clk 0:00:16]}  Ne4 {[%clk 0:00:03]} 34. Nf3 {[%clk 0:00:16]}  Rc7 {[%clk 0:00:02]} 35. Rxc7+ {[%clk 0:00:15]}  Kf6 {[%clk 0:00:02]} 36. Rxb7 {[%clk 0:00:15]}  Be2 {[%clk 0:00:02]} 37. Nd4 {[%clk 0:00:15]}  Bd1 {[%clk 0:00:03]} 38. Rxa7 {[%clk 0:00:15]}  Nxc3 {[%clk 0:00:03]} 39. b6 {[%clk 0:00:15]}  Nd5 {[%clk 0:00:02]} 40. b7 {[%clk 0:00:15]} 1-0


[Site "https://www.chess.com"]

[Event "Titled Tuesday Blitz February 22 Early 2022"]
[White "volunteers1998"]
[Black "Steil-Antoni, Fiona"]
[BlackFideId "4001249"]
[WhiteElo "2260"]
[BlackElo "2059"]
[Result "1/2-1/2"]
[Round "08"]
[TimeControl "180+1"]
[Date "2022.02.22"]
[WhiteClock "0:00:54"]
[BlackClock "0:00:14"]

1. e4 {[%clk 0:02:58]}  e5 {[%clk 0:02:58]} 2. Nf3 {[%clk 0:02:58]}  Nc6 {[%clk 0:02:58]} 3. Bc4 {[%clk 0:02:56]}  Bc5 {[%clk 0:02:58]} 4. b4 {[%clk 0:02:54]}  Bxb4 {[%clk 0:02:57]} 5. c3 {[%clk 0:02:53]}  Be7 {[%clk 0:02:57]} 6. d4 {[%clk 0:02:50]}  d6 {[%clk 0:02:52]} 7. O-O {[%clk 0:02:48]}  Nf6 {[%clk 0:02:51]} 8. Nbd2 {[%clk 0:02:44]}  Bg4 {[%clk 0:02:45]} 9. h3 {[%clk 0:02:41]}  Bh5 {[%clk 0:02:45]} 10. a4 {[%clk 0:02:33]}  O-O {[%clk 0:02:35]} 11. Ba3 {[%clk 0:02:25]}  exd4 {[%clk 0:02:33]} 12. cxd4 {[%clk 0:02:23]}  Nxd4 {[%clk 0:02:28]} 13. g4 {[%clk 0:02:22]}  Nxf3+ {[%clk 0:02:27]} 14. Qxf3 {[%clk 0:02:19]}  Bg6 {[%clk 0:02:26]} 15. Rfe1 {[%clk 0:02:17]}  Nd7 {[%clk 0:02:25]} 16. Bb2 {[%clk 0:02:09]}  Ne5 {[%clk 0:02:19]} 17. Qb3 {[%clk 0:02:05]}  Qc8 {[%clk 0:02:02]} 18. f4 {[%clk 0:02:00]}  Nxg4 {[%clk 0:01:52]} 19. hxg4 {[%clk 0:01:53]}  Qxg4+ {[%clk 0:01:51]} 20. Kh1 {[%clk 0:01:51]}  Qxf4 {[%clk 0:01:40]} 21. Re2 {[%clk 0:01:48]}  Bg5 {[%clk 0:01:27]} 22. Rf1 {[%clk 0:01:44]}  Qh4+ {[%clk 0:01:22]} 23. Rh2 {[%clk 0:01:44]}  Bxe4+ {[%clk 0:01:19]} 24. Nxe4 {[%clk 0:01:41]}  Qxe4+ {[%clk 0:01:20]} 25. Rg2 {[%clk 0:01:39]}  h6 {[%clk 0:00:56]} 26. Bd3 {[%clk 0:01:30]}  Qc6 {[%clk 0:00:40]} 27. Bb1 {[%clk 0:01:16]}  Rae8 {[%clk 0:00:33]} 28. Qd3 {[%clk 0:01:12]}  g6 {[%clk 0:00:33]} 29. Qd4 {[%clk 0:01:06]}  Re5 {[%clk 0:00:31]} 30. Qf2 {[%clk 0:01:02]}  Re6 {[%clk 0:00:17]} 31. Qd4 {[%clk 0:00:59]}  Re5 {[%clk 0:00:15]} 32. Qf2 {[%clk 0:00:56]}  Re6 {[%clk 0:00:13]} 33. Qd4 {[%clk 0:00:54]}  Re5 {[%clk 0:00:14]} 1/2-1/2


[Site "https://www.chess.com"]

[Event "Titled Tuesday Blitz February 22 Early 2022"]
[White "wisdomboy"]
[Black "Petrova, Irina"]
[BlackFideId "14124122"]
[WhiteElo "2440"]
[BlackElo "1988"]
[Result "1-0"]
[Round "08"]
[TimeControl "180+1"]
[Date "2022.02.22"]
[WhiteClock "0:01:08"]
[BlackClock "0:00:02"]

1. d4 {[%clk 0:03:00]}  d5 {[%clk 0:02:59]} 2. c4 {[%clk 0:03:01]}  c6 {[%clk 0:02:59]} 3. Nc3 {[%clk 0:03:01]}  Nf6 {[%clk 0:02:59]} 4. Nf3 {[%clk 0:03:02]}  e6 {[%clk 0:02:58]} 5. Bg5 {[%clk 0:03:02]}  h6 {[%clk 0:02:57]} 6. Bh4 {[%clk 0:03:01]}  dxc4 {[%clk 0:02:55]} 7. a4 {[%clk 0:03:01]}  Bb4 {[%clk 0:02:47]} 8. e3 {[%clk 0:02:59]}  Nbd7 {[%clk 0:02:40]} 9. Bxc4 {[%clk 0:02:59]}  Qa5 {[%clk 0:02:40]} 10. O-O {[%clk 0:02:51]}  Bxc3 {[%clk 0:02:38]} 11. bxc3 {[%clk 0:02:51]}  Qxc3 {[%clk 0:02:38]} 12. Rc1 {[%clk 0:02:51]}  Qa3 {[%clk 0:02:35]} 13. Ne5 {[%clk 0:02:46]}  O-O {[%clk 0:02:18]} 14. Kh1 {[%clk 0:02:28]}  Nxe5 {[%clk 0:02:14]} 15. dxe5 {[%clk 0:02:29]}  Nd7 {[%clk 0:02:14]} 16. f4 {[%clk 0:02:25]}  Qxe3 {[%clk 0:02:06]} 17. Rf3 {[%clk 0:02:26]}  Qe4 {[%clk 0:01:46]} 18. Bd3 {[%clk 0:02:15]}  Qd5 {[%clk 0:01:42]} 19. Rg3 {[%clk 0:02:10]}  Nxe5 {[%clk 0:01:10]} 20. fxe5 {[%clk 0:02:02]}  Qxe5 {[%clk 0:01:11]} 21. Qf3 {[%clk 0:02:00]}  f5 {[%clk 0:01:03]} 22. Qh5 {[%clk 0:01:48]}  Kh7 {[%clk 0:00:43]} 23. Qg6+ {[%clk 0:01:41]}  Kh8 {[%clk 0:00:41]} 24. Be7 {[%clk 0:01:26]}  Rg8 {[%clk 0:00:33]} 25. Rh3 {[%clk 0:01:13]}  Qf4 {[%clk 0:00:16]} 26. Bg5 {[%clk 0:01:10]}  Qg4 {[%clk 0:00:02]} 27. Rxh6+ {[%clk 0:01:08]} 1-0


[Site "https://www.chess.com"]

[Event "Titled Tuesday Blitz February 22 Early 2022"]
[White "Abramov, Alexander"]
[Black "Vine, Elzbieta"]
[WhiteFideId "4174089"]
[BlackFideId "1119320"]
[WhiteElo "2078"]
[BlackElo "1873"]
[Result "0-1"]
[Round "09"]
[TimeControl "180+1"]
[Date "2022.02.22"]
[WhiteClock "0:00:07"]
[BlackClock "0:00:08"]

1. e4 {[%clk 0:03:00]}  c5 {[%clk 0:02:55]} 2. Nf3 {[%clk 0:03:00]}  d6 {[%clk 0:02:52]} 3. d4 {[%clk 0:03:00]}  cxd4 {[%clk 0:02:52]} 4. Nxd4 {[%clk 0:03:01]}  a6 {[%clk 0:02:52]} 5. Nc3 {[%clk 0:02:57]}  b5 {[%clk 0:02:51]} 6. a4 {[%clk 0:02:56]}  b4 {[%clk 0:02:50]} 7. Nd5 {[%clk 0:02:56]}  Bb7 {[%clk 0:02:48]} 8. Bd3 {[%clk 0:02:41]}  Nf6 {[%clk 0:02:44]} 9. Nxf6+ {[%clk 0:02:26]}  exf6 {[%clk 0:02:40]} 10. O-O {[%clk 0:02:20]}  d5 {[%clk 0:02:39]} 11. Re1 {[%clk 0:02:17]}  Be7 {[%clk 0:02:38]} 12. Nf5 {[%clk 0:01:44]}  O-O {[%clk 0:02:35]} 13. Bh6 {[%clk 0:01:43]}  dxe4 {[%clk 0:02:03]} 14. Qg4 {[%clk 0:01:21]}  g6 {[%clk 0:01:58]} 15. Nxe7+ {[%clk 0:01:16]}  Qxe7 {[%clk 0:01:55]} 16. Bxf8 {[%clk 0:01:10]}  Qxf8 {[%clk 0:01:55]} 17. Bxe4 {[%clk 0:01:11]}  Nc6 {[%clk 0:01:45]} 18. Qd7 {[%clk 0:01:01]}  Qc5 {[%clk 0:00:40]} 19. Bd5 {[%clk 0:00:36]}  Ne5 {[%clk 0:00:24]} 20. Qxb7 {[%clk 0:00:15]}  Ra7 {[%clk 0:00:23]} 21. Qc8+ {[%clk 0:00:11]}  Qxc8 {[%clk 0:00:21]} 22. Bb3 {[%clk 0:00:09]}  Rd7 {[%clk 0:00:18]} 23. Rad1 {[%clk 0:00:08]}  Rxd1 {[%clk 0:00:17]} 24. Rxd1 {[%clk 0:00:09]}  Qc5 {[%clk 0:00:13]} 25. Re1 {[%clk 0:00:08]}  Kg7 {[%clk 0:00:12]} 26. h3 {[%clk 0:00:08]}  Nc6 {[%clk 0:00:09]} 27. Re3 {[%clk 0:00:07]}  Nd4 {[%clk 0:00:08]} 0-1


[Site "https://www.chess.com"]

[Event "Titled Tuesday Blitz February 22 Early 2022"]
[White "Araujo Filho, Luiz Antonio Coel"]
[Black "Iljin, Timofey"]
[WhiteFideId "2130661"]
[BlackFideId "14110180"]
[WhiteElo "2205"]
[BlackElo "2396"]
[Result "0-1"]
[Round "09"]
[TimeControl "180+1"]
[Date "2022.02.22"]
[WhiteClock "0:00:04"]
[BlackClock "0:00:59"]

1. d4 {[%clk 0:03:00]}  f5 {[%clk 0:03:00]} 2. e4 {[%clk 0:02:59]}  f4 {[%clk 0:03:00]} 3. Nf3 {[%clk 0:02:56]}  d6 {[%clk 0:02:58]} 4. Bxf4 {[%clk 0:02:56]}  Nf6 {[%clk 0:02:57]} 5. h3 {[%clk 0:02:52]}  g6 {[%clk 0:02:57]} 6. Bd3 {[%clk 0:02:51]}  Bg7 {[%clk 0:02:57]} 7. O-O {[%clk 0:02:51]}  O-O {[%clk 0:02:58]} 8. Qd2 {[%clk 0:02:47]}  a5 {[%clk 0:02:55]} 9. c3 {[%clk 0:02:47]}  Nc6 {[%clk 0:02:55]} 10. Bh6 {[%clk 0:02:45]}  e5 {[%clk 0:02:45]} 11. d5 {[%clk 0:02:17]}  Nb8 {[%clk 0:02:34]} 12. c4 {[%clk 0:02:15]}  Na6 {[%clk 0:02:30]} 13. Re1 {[%clk 0:02:13]}  Nh5 {[%clk 0:02:25]} 14. Be3 {[%clk 0:02:07]}  Bxh3 {[%clk 0:02:20]} 15. Ng5 {[%clk 0:01:44]}  Bd7 {[%clk 0:02:18]} 16. Nc3 {[%clk 0:01:38]}  Nf4 {[%clk 0:02:09]} 17. Nf3 {[%clk 0:01:23]}  Bg4 {[%clk 0:01:56]} 18. Bxf4 {[%clk 0:01:12]}  Rxf4 {[%clk 0:01:48]} 19. Be2 {[%clk 0:01:09]}  Nc5 {[%clk 0:01:46]} 20. Qc2 {[%clk 0:01:08]}  Bxf3 {[%clk 0:01:42]} 21. Bxf3 {[%clk 0:01:07]}  Qf6 {[%clk 0:01:41]} 22. Re3 {[%clk 0:00:57]}  Rf8 {[%clk 0:01:40]} 23. Ne2 {[%clk 0:00:52]}  Rh4 {[%clk 0:01:36]} 24. Ng3 {[%clk 0:00:37]}  Bh6 {[%clk 0:01:25]} 25. Re2 {[%clk 0:00:34]}  Bf4 {[%clk 0:01:25]} 26. Nf1 {[%clk 0:00:28]}  Qg5 {[%clk 0:01:18]} 27. Qc3 {[%clk 0:00:09]}  Qh6 {[%clk 0:01:14]} 28. g3 {[%clk 0:00:09]}  Rh3 {[%clk 0:01:04]} 29. Bg2 {[%clk 0:00:08]}  Rh5 {[%clk 0:01:01]} 30. gxf4 {[%clk 0:00:08]}  Rxf4 {[%clk 0:01:01]} 31. Re3 {[%clk 0:00:04]}  Rfh4 {[%clk 0:01:00]} 32. Rh3 {[%clk 0:00:04]}  Rxh3 {[%clk 0:01:00]} 33. Bxh3 {[%clk 0:00:04]}  Rxh3 {[%clk 0:01:01]} 34. Ng3 {[%clk 0:00:04]}  Nxe4 {[%clk 0:00:59]} 0-1


[Site "https://www.chess.com"]